bitfinex/quotes_SOLUSD_20251124
["timestamp","ask_amount","ask_price","bid_price","bid_amount"]
[1763990709972,24.67831031,130.08,130.07,0.91]
[1763990710849,4.96944631,130.08,130.07,0.91]
[1763990711090,7.91768477,130.11,130.07,0.91]
[1763990711269,4.96944631,130.1,130.08,0.71]
[1763990711459,3.4,130.1,130.08,0.71]
[1763990711757,4.96944631,130.1,130.08,0.71]
[1763990711987,4.96944631,130.12,130.08,0.71]
[1763990712162,17.13696782,130.15,130.08,0.71]
[1763990712163,8.36944631,130.13,130.08,0.71]
[1763990712346,9.78882769,130.19,130.08,0.71]
[1763990712347,13.91650634,130.18,130.09,14.90043557]
[1763990712552,4.96944631,130.15,130.09,14.90043557]
[1763990712771,8.36944631,130.14,130.1,0.71]
[1763990712949,4.96944631,130.14,130.1,0.71]
[1763990713150,8.36944631,130.14,130.1,0.71]
[1763990713352,4.96944631,130.12,130.1,0.71]
[1763990713575,4.96944631,130.13,130.1,0.71]
[1763990714466,8.36944631,130.14,130.1,0.71]
[1763990715955,3.4,130.14,130.1,0.71]
[1763990716174,4.96944631,130.12,130.1,0.71]
[1763990716372,4.96944631,130.11,130.1,0.71]
[1763990716875,4.96944631,130.12,130.1,0.71]
[1763990717675,4.96944631,130.11,130.1,0.71]
[1763990721078,3.4,130.14,130.1,0.71]
[1763990721384,4.96944631,130.11,130.1,0.71]
[1763990721578,4.96944631,130.11,130.08,0.71]
[1763990721883,3.4,130.1,130.08,0.71]
[1763990722659,8.36944631,130.1,130.08,0.71]
[1763990722877,4.96944631,130.1,130.08,0.71]
[1763990724554,4.96944631,130.09,130.08,0.71]
[1763990724978,4.96944631,130.1,130.08,0.71]
[1763990728054,4.96944631,130.1,130.08,17.018864]
[1763990728784,8.36944631,130.11,130.08,17.018864]
[1763990728986,4.96944631,130.1,130.09,0.72]
[1763990730181,4.96944631,130.1,130.07,0.2]
[1763990730488,4.96944631,130.08,130.07,0.2]
[1763990730659,8.36944631,130.08,130.07,0.2]
[1763990730860,23.58463906,130.08,130.07,0.2]
[1763990731092,54.79393863,130.08,130.06,0.2]
[1763990731269,28.53722559,130.07,130.05,0.2]
[1763990731590,9.93889262,130.06,130.05,0.2]
[1763990731759,15.93331791,130.06,130.05,0.2]
[1763990731964,23.52153332,130.06,130.0,0.72]
[1763990732181,21.27831031,130.04,129.97,0.72]
[1763990732373,4.96944631,129.98,129.97,0.72]
[1763990733083,3.4,130.0,129.97,0.72]
[1763990733271,4.96944631,129.98,129.97,0.72]
[1763990733464,4.96944631,129.98,129.95,0.72]
[1763990733666,4.96944631,129.96,129.93,0.1]
[1763990733864,4.96944631,129.94,129.93,0.82]
[1763990734261,4.96944631,129.94,129.93,0.1]
[1763990734993,4.96944631,129.94,129.93,0.82]
[1763990735187,8.36944631,129.94,129.93,0.82]
[1763990735784,4.96944631,129.94,129.93,0.82]
[1763990735968,8.36944631,129.94,129.93,0.82]
[1763990736679,4.96944631,129.94,129.93,0.82]
[1763990736889,8.36944631,129.94,129.93,0.82]
[1763990737492,8.36944631,129.94,129.93,0.1]
[1763990738671,6.13795038,129.94,129.93,0.1]
[1763990739093,6.13795038,129.94,129.93,0.82]
[1763990739094,2.73795038,129.94,129.93,0.82]
[1763990739990,2.73795038,129.94,129.93,0.1]
[1763990740186,2.73795038,129.94,129.84,2.73795038]
[1763990740187,16.308864,129.92,129.88,0.72]
[1763990740373,19.04681438,129.89,129.88,0.72]
[1763990741301,22.44681438,129.89,129.87,0.72]
[1763990741608,2.73795038,129.88,129.85,0.72]
[1763990741815,2.73795038,129.87,129.85,0.72]
[1763990742678,16.308864,129.89,129.85,0.72]
[1763990742877,22.44681438,129.89,129.85,0.72]
[1763990743399,2.73795038,129.86,129.85,0.72]
[1763990743607,6.13795038,129.88,129.85,0.72]
[1763990743775,16.308864,129.89,129.85,0.72]
[1763990743971,2.73795038,129.86,129.82,9.98882769]
[1763990744179,2.73795038,129.85,129.83,0.72]
[1763990744403,2.73795038,129.84,129.83,0.72]
[1763990744579,6.13795038,129.85,129.83,0.72]
[1763990746078,19.04681438,129.86,129.83,0.72]
[1763990746281,3.4,129.85,129.83,0.72]
[1763990747009,3.4,129.86,129.84,2.73795038]
[1763990747218,2.73795038,129.89,129.84,9.93098926]
[1763990747514,6.13795038,129.88,129.85,0.69]
[1763990747822,3.4,129.88,129.85,0.69]
[1763990747998,6.13795038,129.88,129.85,0.69]
[1763990748387,3.4,129.88,129.85,0.69]
[1763990748596,6.13795038,129.88,129.85,0.69]
[1763990748798,16.308864,129.9,129.85,0.69]
[1763990749010,2.73795038,129.88,129.85,0.69]
[1763990749598,2.73795038,129.87,129.85,0.69]
[1763990750513,2.73795038,129.86,129.85,0.69]
[1763990750690,2.73795038,129.87,129.85,0.69]
[1763990752711,6.13795038,129.87,129.85,0.69]
[1763990752879,3.4,129.88,129.85,0.69]
[1763990753084,2.73795038,129.87,129.85,0.69]
[1763990753484,2.73795038,129.86,129.85,0.69]
[1763990754013,2.73795038,129.87,129.85,0.69]
[1763990754581,3.4,129.88,129.85,0.69]
[1763990754582,16.308864,129.9,129.85,0.69]
[1763990754797,3.4,129.89,129.85,0.69]
[1763990755148,2.73795038,129.88,129.85,0.69]
[1763990755991,6.13795038,129.88,129.85,0.69]
[1763990757512,2.73795038,129.88,129.85,0.69]
[1763990758094,19.04681438,129.87,129.85,0.69]
[1763990760926,2.73795038,129.86,129.85,0.71]
[1763990761402,3.4,129.89,129.85,0.71]
[1763990761604,2.73795038,129.87,129.85,0.71]
[1763990761921,3.4,129.86,129.85,0.71]
[1763990763002,3.4,129.88,129.85,0.71]
[1763990764031,2.73795038,129.92,129.87,12.66893964]
[1763990764200,67.40858177,130.05,129.91,2.73795038]
[1763990764201,2.73795038,129.97,129.91,2.73795038]
[1763990764535,4.02416703,130.01,129.96,2.73795038]
[1763990764724,3.4,130.01,129.97,2.73795038]
[1763990764919,3.4,130.01,129.98,0.71]
[1763990765427,19.708864,130.01,129.98,0.71]
[1763990765611,19.708864,130.01,129.94,7.69575819]
[1763990765807,2.73795038,129.99,129.95,2.73795038]
[1763990766125,2.73795038,129.98,129.95,0.71]
[1763990766735,3.4,129.97,129.93,2.73795038]
[1763990767043,6.13795038,129.97,129.94,0.71]
[1763990771346,16.308864,129.99,129.94,3.44795038]
[1763990771347,3.4,129.98,129.94,3.44795038]
[1763990771644,19.04681438,129.99,129.95,2.73795038]
[1763990771845,4.16515672,130.04,129.95,2.73795038]
[1763990771846,4.02299515,130.04,129.97,2.73795038]
[1763990772021,6.13795038,130.02,129.97,2.73795038]
[1763990772220,6.13795038,130.02,129.94,9.78882769]
[1763990772221,2.73795038,130.01,129.98,0.71]
[1763990772555,23.90164549,130.01,129.98,0.71]
[1763990773849,3.4,130.02,129.98,0.71]
[1763990774032,7.59278149,130.01,129.98,0.71]
[1763990774231,3.4,130.02,129.98,8.30278149]
[1763990774428,7.59278149,130.01,129.98,0.71]
[1763990774627,7.59278149,129.99,129.94,0.71]
[1763990774825,7.59278149,129.97,129.95,0.71]
[1763990775044,7.59278149,129.98,129.95,0.71]
[1763990775546,7.59278149,129.97,129.95,0.71]
[1763990775736,16.308864,130.0,129.95,0.71]
[1763990775737,7.59278149,129.98,129.95,0.71]
[1763990776469,7.59278149,129.97,129.95,0.71]
[1763990776624,3.4,129.99,129.95,0.71]
[1763990776826,7.59278149,129.97,129.95,0.71]
[1763990778550,16.308864,129.97,129.95,0.71]
[1763990778734,7.59278149,129.98,129.95,0.71]
[1763990778935,23.90164549,129.98,129.95,0.71]
[1763990781062,16.308864,129.98,129.95,0.71]
[1763990781229,23.90164549,129.98,129.95,0.71]
[1763990782663,16.308864,129.98,129.95,0.71]
[1763990782958,10.99278149,129.99,129.95,8.30278149]
[1763990783154,3.4,129.99,129.95,8.30278149]
[1763990783338,23.90164549,130.0,129.96,0.7]
[1763990783655,19.708864,130.0,129.96,0.7]
[1763990783836,7.59278149,129.99,129.96,0.7]
[1763990786359,24.7290354,130.04,129.96,0.7]
[1763990786360,16.308864,130.01,129.96,0.7]
[1763990786541,10.99278149,129.99,129.96,0.7]
[1763990787630,3.4,129.99,129.96,0.7]
[1763990787837,7.59278149,129.97,129.95,1.4]
[1763990788038,7.59278149,129.97,129.95,2.1]
[1763990788238,7.59278149,129.97,129.93,0.14216157]
[1763990788460,7.59278149,129.97,129.95,0.7]
[1763990788651,7.59278149,129.98,129.95,0.7]
[1763990788853,3.4,129.99,129.95,0.7]
[1763990789053,7.59278149,129.98,129.95,0.7]
[1763990790168,7.59278149,129.97,129.95,0.7]
[1763990790345,7.59278149,129.97,129.92,18.92377075]
[1763990790547,7.59278149,129.97,129.95,0.7]
[1763990791065,7.59278149,129.98,129.95,0.7]
[1763990791572,3.4,129.99,129.92,18.22377075]
[1763990791573,7.59278149,129.97,129.92,18.22377075]
[1763990791771,7.59278149,129.96,129.92,0.7]
[1763990791942,7.59278149,129.96,129.93,0.7]
[1763990792452,3.4,129.99,129.93,0.7]
[1763990792652,7.59278149,129.96,129.93,0.7]
[1763990794546,6.13551284,129.96,129.93,0.7]
[1763990797977,3.4,129.96,129.93,0.7]
[1763990798275,6.13551284,129.96,129.93,0.7]
[1763990800077,19.04437684,129.94,129.88,3.4]
[1763990800278,2.73551284,129.89,129.86,0.7]
[1763990800571,20.5896557,129.87,129.84,0.7]
[1763990800771,4.2807917,129.86,129.84,0.7]
[1763990801281,19.708864,129.89,129.84,0.7]
[1763990801478,4.2807917,129.88,129.84,4.9807917]
[1763990801874,4.2807917,129.88,129.85,0.7]
[1763990802173,3.4,129.88,129.85,0.7]
[1763990803555,7.6807917,129.88,129.86,0.7]
[1763990803954,16.308864,129.89,129.86,0.7]
[1763990804177,7.6807917,129.88,129.86,0.7]
[1763990805656,3.4,129.88,129.86,0.7]
[1763990805857,7.6807917,129.88,129.86,0.7]
[1763990808270,3.4,129.88,129.86,0.7]
[1763990808587,7.6807917,129.88,129.86,0.7]
[1763990810290,3.4,129.88,129.86,0.7]
[1763990810479,7.6807917,129.88,129.86,0.7]
[1763990810974,4.2807917,129.88,129.86,0.7]
[1763990811174,7.6807917,129.88,129.86,0.7]
[1763990811373,16.308864,129.89,129.86,0.7]
[1763990811374,19.708864,129.89,129.86,0.7]
[1763990811589,3.4,129.89,129.86,4.9807917]
[1763990811884,3.4,129.89,129.86,0.7]
[1763990812081,3.4,129.89,129.87,0.7]
[1763990812988,20.5896557,129.9,129.87,0.7]
[1763990813189,4.2807917,129.89,129.85,0.66]
[1763990813380,4.2807917,129.89,129.86,0.66]
[1763990814081,4.2807917,129.88,129.86,0.66]
[1763990815887,4.2807917,129.89,129.86,0.66]
[1763990816893,3.4,129.88,129.86,0.66]
[1763990819783,4.2807917,129.89,129.86,0.66]
[1763990819986,3.4,129.88,129.86,0.66]
[1763990821616,4.2807917,129.87,129.84,0.66]
[1763990821904,4.2807917,129.85,129.82,0.2]
[1763990822071,4.2807917,129.84,129.82,0.86]
[1763990822274,7.6807917,129.85,129.82,0.86]
[1763990822994,3.4,129.85,129.83,0.66]
[1763990823206,7.6807917,129.85,129.82,0.2]
[1763990823373,7.6807917,129.85,129.83,0.66]
[1763990823973,4.2807917,129.84,129.82,0.2]
[1763990824193,4.2807917,129.83,129.82,0.2]
[1763990824582,4.2807917,129.84,129.82,0.86]
[1763990824878,7.6807917,129.84,129.82,0.2]
[1763990825286,20.5896557,129.83,129.82,0.2]
[1763990825883,4.2807917,129.83,129.82,0.2]
[1763990826093,20.53199537,129.83,129.82,0.2]
[1763990826897,20.5896557,129.81,129.8,0.2]
[1763990827204,23.9896557,129.81,129.8,0.2]
[1763990829208,33.92064496,129.81,129.8,0.2]
[1763990832006,29.63985326,129.81,129.8,0.2]
[1763990832208,33.92064496,129.81,129.8,0.2]
[1763990835985,44.52976374,129.81,129.8,0.2]
[1763990836385,41.10976374,129.81,129.8,0.2]
[1763990836586,44.52976374,129.81,129.8,0.2]
[1763990840010,16.308864,129.81,129.8,0.86]
[1763990840223,24.0096557,129.81,129.8,0.86]
[1763990840587,24.0096557,129.81,129.8,0.2]
[1763990842728,20.5896557,129.81,129.8,0.2]
[1763990843028,24.0096557,129.81,129.8,0.86]
[1763990844701,16.308864,129.81,129.8,0.86]
[1763990844900,19.728864,129.81,129.8,0.86]
[1763990845514,24.0096557,129.81,129.8,0.86]
[1763990845712,20.5896557,129.81,129.8,0.86]
[1763990845916,24.0096557,129.81,129.8,0.86]
[1763990846450,19.728864,129.81,129.8,0.86]
[1763990846743,3.42,129.82,129.8,0.86]
[1763990846900,4.2807917,129.81,129.8,0.86]
[1763990847100,4.2807917,129.81,129.8,0.2]
[1763990847632,16.308864,129.81,129.8,0.86]
[1763990850011,20.5896557,129.83,129.8,0.86]
[1763990850211,3.4,129.82,129.81,0.66]
[1763990851243,16.308864,129.83,129.81,0.66]
[1763990851526,3.4,129.82,129.81,0.66]
[1763990854117,16.308864,129.83,129.81,0.66]
[1763990855443,20.5896557,129.86,129.81,4.9407917]
[1763990855648,4.2807917,129.88,129.83,4.2807917]
[1763990855814,7.4277356,129.87,129.83,4.2807917]
[1763990856009,3.4,129.87,129.84,4.9407917]
[1763990856216,3.4,129.87,129.81,7.84561465]
[1763990856217,3.4,129.87,129.85,0.66]
[1763990856426,7.6807917,129.87,129.85,0.66]
[1763990857322,3.4,129.87,129.85,0.66]
[1763990857522,16.308864,129.87,129.85,0.66]
[1763990857719,19.708864,129.87,129.85,0.66]
[1763990860749,16.308864,129.87,129.85,0.66]
[1763990861751,4.02729168,129.9,129.85,0.66]
[1763990861922,2.7390995,129.91,129.86,2.7390995]
[1763990862121,19.708864,129.9,129.86,2.7390995]
[1763990862339,19.708864,129.9,129.87,0.66]
[1763990864541,3.4,129.9,129.87,3.3990995]
[1763990864950,3.4,129.9,129.88,0.66]
[1763990866044,6.1390995,129.9,129.88,0.66]
[1763990866230,2.7390995,129.89,129.88,0.66]
[1763990866738,6.1390995,129.9,129.88,0.66]
[1763990867237,3.4,129.9,129.88,0.66]
[1763990867428,6.1390995,129.9,129.88,0.66]
[1763990868038,3.4,129.9,129.88,0.66]
[1763990868239,6.1390995,129.9,129.88,0.66]
[1763990869326,3.4,129.9,129.88,0.66]
[1763990870138,6.1390995,129.9,129.88,0.66]
[1763990871223,3.4,129.9,129.88,0.66]
[1763990872825,6.76559459,129.93,129.88,3.3990995]
[1763990873043,3.4,129.93,129.89,2.7390995]
[1763990873229,19.708864,129.93,129.89,3.4290995]
[1763990873545,22.4479635,129.93,129.9,0.69]
[1763990873930,2.7390995,129.92,129.9,0.69]
[1763990875449,22.4479635,129.93,129.9,0.69]
[1763990878558,19.708864,129.93,129.91,2.7390995]
[1763990878759,0.2,129.95,129.92,2.7390995]
[1763990878926,3.6,129.95,129.92,2.7390995]
[1763990879135,0.2,129.95,129.94,2.7390995]
[1763990879562,0.2,129.95,129.94,3.4290995]
[1763990879937,0.2,129.95,129.94,0.69]
[1763990880943,2.9390995,129.95,129.94,0.69]
[1763990881143,0.2,129.95,129.94,0.69]
[1763990881457,19.2479635,129.95,129.92,0.69]
[1763990881858,16.508864,129.95,129.92,0.69]
[1763990882242,0.2,129.95,129.92,0.69]
[1763990883140,0.2,129.96,129.94,2.7390995]
[1763990883652,0.2,129.96,129.95,3.4290995]
[1763990886060,0.2,129.96,129.95,0.69]
[1763990886262,0.2,129.96,129.95,3.4290995]
[1763990889075,0.2,129.96,129.95,21.05535617]
[1763990890080,0.2,129.96,129.95,0.69]
[1763990890280,0.2,129.96,129.95,3.4290995]
[1763990890449,0.2,129.96,129.95,3.57126107]
[1763990891145,0.2,129.96,129.95,21.05535617]
[1763990892462,0.2,129.96,129.95,32.01175417]
[1763990893446,0.2,129.96,129.95,35.41175417]
[1763990894046,0.2,129.96,129.95,36.81175417]
[1763990895054,16.308864,130.03,129.95,56.04992269]
[1763990895257,16.308864,130.03,130.0,2.7390995]
[1763990895564,16.308864,130.03,130.01,2.7390995]
[1763990895877,16.308864,130.03,130.02,0.69]
[1763990896248,16.308864,130.03,130.01,0.69]
[1763990896569,16.308864,130.03,130.02,0.69]
[1763990896976,0.2,130.05,130.02,3.4290995]
[1763990897174,16.508864,130.05,130.03,0.69]
[1763990897978,0.2,130.05,130.03,3.4290995]
[1763990898277,0.2,130.05,130.03,0.69]
[1763990900178,0.2,130.05,130.02,2.7390995]
[1763990900364,0.2,130.05,130.03,0.69]
[1763990901198,19.2379635,130.04,130.0,0.69]
[1763990901492,0.19,130.03,129.99,0.69]
[1763990901650,2.7390995,130.02,129.99,0.69]
[1763990902055,2.7390995,130.03,129.99,0.69]
[1763990902788,2.7390995,130.02,129.99,0.69]
[1763990903169,2.7390995,130.01,129.99,0.69]
[1763990903660,2.7390995,130.01,129.97,2.7390995]
[1763990903886,2.7390995,130.01,129.98,0.72]
[1763990904108,16.508864,130.05,130.0,2.7390995]
[1763990904303,0.2,130.05,130.04,2.7390995]
[1763990904662,0.2,130.05,130.04,3.4590995]
[1763990905164,0.2,130.05,130.04,13.39008876]
[1763990906263,0.2,130.05,130.04,21.08003031]
[1763990906666,0.2,130.05,130.04,13.39008876]
[1763990907186,0.2,130.05,130.04,21.08003031]
[1763990907557,0.2,130.06,130.05,9.93098926]
[1763990907760,0.2,130.06,130.05,13.39008876]
[1763990908391,0.2,130.06,130.05,21.079439]
[1763990908689,0.2,130.06,130.05,24.16074701]
[1763990909191,0.2,130.06,130.05,16.47139677]
[1763990909689,0.2,130.06,130.05,16.79008876]
[1763990909890,0.2,130.09,130.05,16.79008876]
[1763990910096,0.2,130.09,130.08,12.67008876]
[1763990910462,0.2,130.09,130.08,13.39008876]
[1763990910969,0.2,130.09,130.08,0.72]
[1763990911166,0.2,130.09,130.08,3.4590995]
[1763990911392,0.59,130.09,130.04,9.78882769]
[1763990911686,0.2,130.09,130.06,2.7390995]
[1763990911884,3.3290995,130.09,130.05,6.8590995]
[1763990912185,0.2,130.09,130.06,3.4590995]
[1763990912563,0.2,130.09,130.07,3.4590995]
[1763990912984,0.2,130.09,130.05,3.4]
[1763990913177,0.59,130.09,130.06,2.7390995]
[1763990913381,0.2,130.09,130.06,3.4590995]
[1763990913769,3.3290995,130.09,130.05,3.4]
[1763990914094,2.7390995,130.06,130.02,6.8590995]
[1763990914287,2.7390995,130.07,130.03,0.72]
[1763990914687,0.2,130.09,130.03,0.72]
[1763990914892,16.898864,130.09,130.05,2.7390995]
[1763990915197,19.6379635,130.09,130.04,2.7390995]
[1763990915404,19.6379635,130.09,130.04,3.4590995]
[1763990915704,19.6379635,130.09,130.05,3.4590995]
[1763990916195,16.898864,130.09,130.05,3.4590995]
[1763990916375,0.2,130.09,130.06,3.4590995]
[1763990916588,0.2,130.09,130.06,0.72]
[1763990916790,0.2,130.09,130.03,9.78882769]
[1763990916985,3.3290995,130.09,130.04,3.4590995]
[1763990917391,3.3290995,130.09,130.05,0.72]
[1763990918004,0.2,130.09,130.06,2.7390995]
[1763990918379,0.2,130.09,130.07,0.72]
[1763990918601,0.2,130.09,130.07,3.4590995]
[1763990920341,0.2,130.09,130.07,2.7390995]
[1763990920636,0.2,130.09,130.08,3.4590995]
[1763990922702,0.2,130.09,130.08,5.69330972]
[1763990925519,0.2,130.09,130.08,13.38088659]
[1763990926819,0.2,130.09,130.08,23.16971428]
[1763990927697,0.2,130.09,130.08,62.63857828]
[1763990928693,0.2,130.12,130.11,16.308864]
[1763990928897,0.2,130.12,130.11,33.02797803]
[1763990929297,0.2,130.12,130.11,65.97680572]
[1763990929706,0.2,130.12,130.11,70.95011544]
[1763990929906,0.2,130.17,130.12,32.94882769]
[1763990930130,0.2,130.17,130.16,4.97330972]
[1763990930513,0.2,130.17,130.16,5.63330972]
[1763990930900,0.2,130.17,130.15,3.4]
[1763990931135,5.56330972,130.17,130.13,4.97330972]
[1763990931719,0.59,130.17,130.13,4.97330972]
[1763990931947,0.2,130.17,130.14,5.63330972]
[1763990932143,0.59,130.17,130.13,16.968864]
[1763990932444,5.56330972,130.17,130.13,21.94217372]
[1763990933052,0.39,130.16,130.13,21.28217372]
[1763990933522,0.39,130.16,130.12,5.69330972]
[1763990933721,0.2,130.17,130.14,4.97330972]
[1763990934156,0.59,130.17,130.14,4.97330972]
[1763990935751,0.2,130.17,130.14,4.97330972]
[1763990936479,0.2,130.19,130.15,0.72]
[1763990936750,0.2,130.19,130.18,14.76213741]
[1763990937125,0.2,130.19,130.18,15.48213741]
[1763990937362,0.2,130.19,130.18,4.97330972]
[1763990937561,0.2,130.19,130.17,4.97330972]
[1763990937739,5.76330972,130.19,130.15,4.97330972]
[1763990937924,0.79,130.19,130.15,4.97330972]
[1763990938117,0.59,130.18,130.15,4.97330972]
[1763990938652,0.2,130.19,130.15,4.97330972]
[1763990938950,0.79,130.19,130.15,5.69330972]
[1763990939424,0.2,130.19,130.16,4.97330972]
[1763990940251,0.2,130.19,130.17,4.97330972]
[1763990940829,0.2,130.19,130.16,5.69330972]
[1763990941823,0.2,130.19,130.18,4.97330972]
[1763990942026,0.2,130.19,130.18,9.09330972]
[1763990942946,0.2,130.19,130.18,18.88213741]
[1763990943852,0.2,130.19,130.18,31.53711866]
[1763990944030,0.2,130.19,130.18,26.56380894]
[1763990944947,0.2,130.19,130.18,31.53711866]
[1763990946044,0.2,130.23,130.19,9.78882769]
[1763990946240,0.2,130.23,130.22,4.97330972]
[1763990946450,0.2,130.23,130.22,9.09330972]
[1763990946651,0.2,130.23,130.22,18.88213741]
[1763990947326,0.79,130.23,130.18,0.72]
[1763990947526,5.76330972,130.23,130.19,4.97330972]
[1763990947726,0.59,130.22,130.19,4.97330972]
[1763990948359,0.59,130.22,130.18,4.97330972]
[1763990948653,0.59,130.22,130.19,4.97330972]
[1763990949048,5.56330972,130.22,130.17,3.4]
[1763990949351,4.97330972,130.21,130.16,8.37330972]
[1763990949648,0.59,130.2,130.16,8.37330972]
[1763990949827,5.56330972,130.2,130.16,8.37330972]
[1763990950261,0.59,130.19,130.16,3.4]
[1763990950856,0.59,130.19,130.15,9.09330972]
[1763990951249,0.59,130.19,130.15,4.12]
[1763990951568,0.59,130.19,130.15,9.09330972]
[1763990951866,0.59,130.19,130.15,8.37330972]
[1763990952070,4.97330972,130.18,130.13,3.4]
[1763990952375,4.97330972,130.18,130.14,4.97330972]
[1763990952669,0.59,130.18,130.14,5.69330972]
[1763990953976,0.59,130.18,130.13,3.4]
[1763990954180,0.59,130.18,130.14,4.97330972]
[1763990955057,5.56330972,130.21,130.17,4.97330972]
[1763990955264,0.59,130.21,130.17,4.97330972]
[1763990955771,0.59,130.21,130.17,5.66330972]
[1763990955984,5.56330972,130.21,130.14,9.78882769]
[1763990956190,5.56330972,130.21,130.17,5.66330972]
[1763990956693,0.59,130.21,130.17,5.66330972]
[1763990959079,5.17330972,130.23,130.18,5.66330972]
[1763990959378,0.79,130.23,130.19,5.66330972]
[1763990959879,0.2,130.23,130.22,4.97330972]
[1763990960262,0.2,130.23,130.22,5.66330972]
[1763990961173,0.2,130.23,130.22,15.45213741]
[1763990961979,0.2,130.23,130.22,23.13144934]
[1763990962558,0.2,130.23,130.22,30.00156025]
[1763990963572,0.2,130.23,130.22,65.00498088]
[1763990963980,0.2,130.23,130.22,45.48224832]
[1763990964297,0.2,130.23,130.22,30.00156025]
[1763990964757,0.2,130.23,130.22,41.84498088]
[1763990965361,0.2,130.23,130.22,30.00156025]
[1763990966081,0.2,130.23,130.22,33.40156025]
[1763990966891,0.2,130.23,130.2,0.69]
[1763990967079,0.2,130.23,130.22,11.84342063]
[1763990967558,0.2,130.23,130.22,12.53342063]
[1763990968187,0.2,130.23,130.22,65.77291207]
[1763990968392,0.2,130.25,130.24,49.25769169]
[1763990968683,0.2,130.25,130.24,64.50111232]
[1763990968886,0.2,130.25,130.24,65.19111232]
[1763990969593,0.2,130.25,130.24,42.03111232]
[1763990969778,0.2,130.25,130.24,65.19111232]
[1763990969978,0.2,130.25,130.24,46.30924499]
[1763990970171,0.2,130.25,130.24,49.70924499]
[1763990972590,0.2,130.25,130.24,42.03111232]
[1763990973196,0.2,130.25,130.24,49.70924499]
[1763990973999,0.2,130.25,130.24,33.40038099]
[1763990976371,0.2,130.25,130.24,25.72224832]
[1763990977181,0.2,130.25,130.24,33.40038099]
[1763990977385,0.2,130.25,130.24,25.72224832]
[1763990978800,0.2,130.25,130.24,15.24342063]
[1763990978979,0.2,130.25,130.24,3.4]
[1763990979177,0.2,130.25,130.24,15.24342063]
[1763990980687,0.2,130.25,130.24,33.40038099]
[1763990981188,0.2,130.25,130.24,25.72224832]
[1763990981570,0.2,130.25,130.24,33.40038099]
[1763990982586,0.2,130.25,130.24,24.73119647]
[1763990984405,0.2,130.25,130.24,21.33119647]
[1763990984611,0.2,130.25,130.24,24.73119647]
[1763990985079,0.2,130.25,130.24,9.78882769]
[1763990985279,0.2,130.25,130.24,6.57423611]
[1763990985895,0.91,130.25,130.22,0.69]
[1763990986103,0.91,130.25,130.24,6.57423611]
[1763990993818,0.2,130.25,130.24,6.57423611]
[1763990994017,0.92,130.25,130.24,6.57423611]
[1763990994218,0.92,130.25,130.2,9.78882769]
[1763990994513,0.72,130.24,130.22,3.17423611]
[1763990994733,0.2,130.25,130.23,3.17423611]
[1763990994888,0.72,130.24,130.21,3.4]
[1763990995089,0.72,130.24,130.22,3.17423611]
[1763990995285,0.92,130.25,130.23,3.17423611]
[1763990996793,0.72,130.24,130.21,4.11]
[1763990996998,0.72,130.24,130.23,3.17423611]
[1763990997935,0.72,130.24,130.22,3.17423611]
[1763990998614,0.72,130.24,130.23,3.17423611]
[1763990999721,0.2,130.25,130.23,3.17423611]
[1763990999908,0.92,130.25,130.23,3.17423611]
[1763991000805,0.72,130.24,130.21,4.11]